fUST/lending_fUST_20240703
["ID","MTS","AMOUNT","RATE_DAILY","PERIOD"]
[330911322,1719937862466,-500.0,0.00014917,2]
[330911323,1719937862476,-696.4,0.00014917,2]
[330911324,1719937862485,-500.0,0.00014917,2]
[330911325,1719937862494,-500.0,0.00014917,2]
[330911326,1719937862503,-500.0,0.00014917,2]
[330911327,1719937862512,-244.02,0.00014917,2]
[330911328,1719937862523,-500.0,0.00014917,2]
[330911329,1719937862534,-491.53248421,0.00014917,2]
[330911331,1719937862546,-7468.84,0.00014917,2]
[330911332,1719937862555,-500.0,0.00014917,2]
[330911334,1719937862565,-449.5439518,0.00014917,2]
[330911335,1719937862574,-500.0,0.00014917,2]
[330911337,1719937862584,-500.0,0.00014917,2]
[330911339,1719937862593,-500.0,0.00014917,2]
[330911341,1719937862603,-500.0,0.00014917,2]
[330911343,1719937862613,-500.0,0.00014917,2]
[330911345,1719937862622,-500.0,0.00014917,2]
[330911347,1719937862632,-500.0,0.00014917,2]
[330911349,1719937862641,-500.0,0.00014917,2]
[330911351,1719937862652,-500.0,0.00014917,2]
[330911354,1719937862662,-500.0,0.00014917,2]
[330911356,1719937862672,-500.0,0.00014917,2]
[330911357,1719937862682,-500.0,0.00014917,2]
[330911360,1719937862692,-500.0,0.00014917,2]
[330911362,1719937862704,-3706.45,0.00014917,2]
[330911364,1719937862714,-500.0,0.00014917,2]
[330911366,1719937862723,-500.0,0.00014917,2]
[330911368,1719937862733,-500.0,0.00014917,2]
[330911370,1719937862743,-500.0,0.00014917,2]
[330911372,1719937862753,-500.0,0.00014917,2]
[330911374,1719937862765,-500.0,0.00014917,2]
[330911376,1719937862775,-551.69317341,0.00014917,2]
[330911378,1719937862785,-500.0,0.00014917,2]
[330911380,1719937862794,-500.0,0.00014917,2]
[330911382,1719937862803,-5202.77,0.00014917,2]
[330911384,1719937862813,-5202.77,0.00014917,2]
[330911386,1719937862824,-287.95832209,0.00014917,2]
[330911388,1719937862834,-500.0,0.00014917,2]
[330911390,1719937862843,-500.0,0.00014917,2]
[330911392,1719937862853,-500.0,0.00014917,2]
[330911394,1719937862862,-500.0,0.00014917,2]
[330911396,1719937862871,-500.0,0.00014917,2]
[330911398,1719937862880,-500.0,0.00014917,2]
[330911400,1719937862890,-500.0,0.00014917,2]
[330911402,1719937862899,-588.01,0.00014917,2]
[330911404,1719937862909,-500.0,0.00014917,2]
[330911406,1719937862919,-500.0,0.00014917,2]
[330911408,1719937862928,-532.2078891,0.00014917,2]
[330911410,1719937862937,-742.64,0.00014917,2]
[330911412,1719937862946,-500.0,0.00014917,2]
[330911414,1719937862956,-500.0,0.00014917,2]
[330911416,1719937862966,-500.0,0.00014917,2]
[330911418,1719937862975,-500.0,0.00014917,2]
[330911420,1719937862985,-500.0,0.00014917,2]
[330911422,1719937862995,-500.0,0.00014917,2]
[330911424,1719937863004,-500.0,0.00014917,2]
[330911426,1719937863017,-500.0,0.00014917,2]
[330911428,1719937863028,-500.0,0.00014917,2]
[330911430,1719937863038,-1034.14,0.00014917,2]
[330911433,1719937863051,-500.0,0.00014917,2]
[330911435,1719937863061,-500.0,0.00014917,2]
[330911437,1719937863071,-500.0,0.00014917,2]
[330911439,1719937863081,-500.0,0.00014917,2]
[330911441,1719937863090,-500.0,0.00014917,2]
[330911443,1719937863103,-500.0,0.00014917,2]
[330911444,1719937863113,-230.61460439,0.00014917,2]
[330911446,1719937863122,-500.0,0.00014917,2]
[330911448,1719937863131,-500.0,0.00014917,2]
[330911450,1719937863141,-500.0,0.00014917,2]
[330911453,1719937863151,-500.0,0.00014917,2]
[330911455,1719937863161,-500.0,0.00014917,2]
[330911457,1719937863172,-500.0,0.00014917,2]
[330911459,1719937863181,-500.0,0.00014917,2]
[330911461,1719937863191,-500.0,0.00014917,2]
[330911463,1719937863202,-500.0,0.00014917,2]
[330911465,1719937863212,-500.0,0.00014917,2]
[330911467,1719937863222,-7772.69,0.00014917,2]
[330911469,1719937863232,-1506.43,0.00014917,2]
[330911471,1719937863242,-500.0,0.00014917,2]
[330911473,1719937863251,-500.0,0.00014917,2]
[330911475,1719937863262,-310.60040158,0.00014917,2]
[330911477,1719937863274,-500.0,0.00014917,2]
[330911479,1719937863283,-500.0,0.00014917,2]
[330911481,1719937863293,-554.38,0.00014917,2]
[330911483,1719937863303,-500.0,0.00014917,2]
[330911485,1719937863312,-500.0,0.00014918,2]
[330911487,1719937863322,-500.0,0.00014918,2]
[330911489,1719937863332,-500.0,0.00014918,2]
[330911491,1719937863341,-500.6,0.00014918,2]
[330911493,1719937863350,-500.0,0.00014918,2]
[330911495,1719937863360,-500.0,0.00014918,2]
[330911497,1719937863369,-1225.81,0.00014918,2]
[330911499,1719937863379,-500.0,0.00014918,2]
[330911501,1719937863389,-500.0,0.00014918,2]
[330911503,1719937863398,-500.0,0.00014918,2]
[330911505,1719937863408,-500.0,0.00014918,2]
[330911507,1719937863418,-500.0,0.00014918,2]
[330911509,1719937863427,-500.0,0.00014918,2]
[330911511,1719937863437,-978.74,0.00014918,2]
[330911513,1719937863447,-500.0,0.00014918,2]
[330911515,1719937863456,-500.0,0.00014918,2]
[330911517,1719937863465,-821.92,0.00014918,2]
[330911519,1719937863475,-500.0,0.00014918,2]
[330911521,1719937863486,-506.44,0.00014918,2]
[330911523,1719937863495,-699.97,0.00014918,2]
[330911525,1719937863505,-500.0,0.00014918,2]
[330911527,1719937863516,-491.26112407,0.00014918,2]
[330911529,1719937863526,-991.93,0.00014918,2]
[330911531,1719937863535,-500.0,0.00014918,2]
[330911533,1719937863546,-904.53,0.00014918,2]
[330911535,1719937863556,-727.43,0.00014918,2]
[330911537,1719937863565,-500.0,0.00014918,2]
[330911539,1719937863576,-514.99,0.00014918,2]
[330911541,1719937863586,-1449.99,0.00014918,2]
[330911543,1719937863597,-500.0,0.00014918,2]
[330911545,1719937863607,-567.52,0.00014918,2]
[330911547,1719937863616,-500.0,0.00014918,2]
[330911548,1719937863626,-500.0,0.00014918,2]
[330911550,1719937863636,-500.0,0.00014918,2]
[330911552,1719937863646,-500.0,0.00014918,2]
[330911554,1719937863656,-500.0,0.00014918,2]
[330911556,1719937863665,-500.0,0.00014918,2]
[330911558,1719937863675,-1267.2,0.00014918,2]
[330911560,1719937863685,-500.0,0.00014918,2]
[330911562,1719937863695,-500.0,0.00014918,2]
[330911564,1719937863704,-500.0,0.00014918,2]
[330911567,1719937863714,-591.38,0.00014919,2]
[330911569,1719937863724,-500.0,0.00014919,2]
[330911571,1719937863733,-500.0,0.00014919,2]
[330911573,1719937863744,-944.93,0.00014919,2]
[330911575,1719937863753,-632.71,0.00014919,2]
[330911577,1719937863762,-500.0,0.00014945,2]
[330911579,1719937863774,-500.0,0.00014945,2]
[330911581,1719937863783,-500.0,0.00014945,2]
[330911583,1719937863792,-500.0,0.00014945,2]
[330911585,1719937863801,-5202.77,0.00014945,2]
[330911586,1719937863810,-5202.77,0.00014945,2]
[330911589,1719937863820,-5202.77,0.00014945,2]
[330911591,1719937863830,-5202.77,0.00014945,2]
[330911593,1719937863840,-5202.98447803,0.00014945,2]
[330911595,1719937863849,-504.87069032,0.00014945,2]
[330911597,1719937863858,-500.0,0.00014945,2]
[330911599,1719937863868,-500.0,0.00014945,2]
[330911601,1719937863877,-5911.76,0.00014946,2]
[330911603,1719937863886,-11610.64,0.00014946,2]
[330911605,1719937863896,-1051.2,0.00014946,2]
[330911607,1719937863905,-8678.91,0.00014946,2]
[330911609,1719937863914,-500.0,0.00014946,2]
[330911611,1719937863924,-942.61,0.00014946,2]
[330911613,1719937863933,-153.0,0.00014986,2]
[330911615,1719937863943,-401.84,0.00014998,2]
[330911617,1719937863952,-500.0,0.00014998,2]
[330911619,1719937863961,-11131.22393028,0.00014998,2]
[330911621,1719937863970,-1500.0,0.00014999,2]
[330911623,1719937863979,-789.60606317,0.00014999,2]
[330911624,1719937863990,-3076.83798714,0.00014999,2]
[330911626,1719937863999,-1757.40911364,0.00014999,2]
[330911628,1719937864009,-1466.71812487,0.00014999,2]
[330911630,1719937864023,-2117.93187801,0.00014999,2]
[330911633,1719937864032,-2126.01092602,0.00014999,2]
[330911635,1719937864041,-1567.90892425,0.00014999,2]
[330911636,1719937864051,-948.66466546,0.00015,2]
[330911639,1719937864062,-408.74962315,0.00015,2]
[330911641,1719937864073,-154.85288975,0.00015,2]
[330911643,1719937864086,-7379.4,0.00015,2]
[330911645,1719937864098,-2279.65674304,0.00015,2]
[330911647,1719937864107,-2825.49865465,0.00015,2]
[330911649,1719937864117,-1000.0,0.00015,15]
[330911651,1719937864127,-603.88500034,0.00015001,2]
[330911653,1719937864135,-231.309,0.00015116,2]
[330911655,1719937864145,-877.0,0.00015116,2]
[330911657,1719937864154,-203.30163,0.00015119,2]
[330911659,1719937864163,-512.890949,0.00015119,2]
[330911661,1719937864172,-742.745429,0.00015119,2]
[330911663,1719937864181,-152.476222,0.00015119,2]
[330911665,1719937864191,-1866.888658,0.00015119,2]
[330911666,1719937864200,-2102.816397,0.00015119,2]
[330911668,1719937864210,-203.301632,0.00015119,2]
[330911670,1719937864219,-742.745429,0.00015119,2]
[330911673,1719937864228,-841.10676,0.00015119,2]
[330911675,1719937864237,-208.33012139,0.00015179,2]
[330911677,1719937864247,-1200.51,0.00015188,2]
[330911679,1719937864256,-3348.94,0.00015188,2]
[330911680,1719937864266,-500.0,0.00015188,2]
[330911682,1719937864275,-500.0,0.00015188,2]
[330911684,1719937864285,-500.0,0.00015188,2]
[330911687,1719937864294,-500.0,0.00015188,2]
[330911689,1719937864303,-24491.25,0.00015188,2]
[330911691,1719937864313,-500.0,0.00015188,2]
[330911693,1719937864323,-2884.24,0.00015188,2]
[330911695,1719937864333,-4547.83,0.00015189,2]
[330911696,1719937864343,-1575.35,0.00015189,2]
[330911698,1719937864352,-500.0,0.00015189,2]
[330911701,1719937864363,-2388.79,0.00015189,2]
[330911702,1719937864373,-3129.77,0.00015189,2]
[330911705,1719937864382,-1713.81,0.00015189,2]
[330911707,1719937864392,-500.0,0.00015189,2]
[330911709,1719937864401,-500.0,0.00015189,2]
[330911711,1719937864411,-960.76,0.00015189,2]
[330911713,1719937864421,-5773.58,0.00015189,2]
[330911715,1719937864430,-500.0,0.0001519,2]
[330911716,1719937864439,-1411.82,0.0001519,2]
[330911718,1719937864448,-500.0,0.0001519,2]
[330911721,1719937864458,-657.05,0.0001519,2]
[330911722,1719937864467,-220.4,0.0001519,2]
[330911724,1719937864476,-1470.66,0.0001519,2]
[330911726,1719937864486,-500.0,0.0001519,2]
[330911728,1719937864496,-476.4,0.0001519,2]
[330911730,1719937864505,-374.86,0.0001519,2]
[330911732,1719937864515,-1406.33,0.0001519,2]
[330911734,1719937864525,-1670.31,0.0001519,2]
[330911737,1719937864534,-500.0,0.0001519,2]
[330911738,1719937864544,-500.0,0.0001519,2]
[330911740,1719937864554,-500.0,0.0001519,2]
[330911742,1719937864563,-500.0,0.0001519,2]
[330911744,1719937864573,-664.76,0.0001519,2]
[330911746,1719937864582,-500.0,0.0001519,2]
[330911748,1719937864592,-500.0,0.0001519,2]
[330911750,1719937864602,-1929.34,0.0001519,2]
[330911752,1719937864611,-500.0,0.0001519,2]
[330911754,1719937864620,-802.67,0.0001519,2]
[330911756,1719937864629,-500.0,0.0001519,2]
[330911758,1719937864639,-500.0,0.0001519,2]
[330911760,1719937864649,-500.0,0.0001519,2]
[330911762,1719937864658,-500.0,0.0001519,2]
[330911764,1719937864668,-500.0,0.0001519,2]
[330911766,1719937864678,-205.52,0.0001519,2]
[330911769,1719937864687,-500.0,0.0001519,2]
[330911771,1719937864697,-500.0,0.0001519,2]
[330911773,1719937864707,-785.88,0.0001519,2]
[330911775,1719937864716,-500.0,0.0001519,2]
[330911777,1719937864726,-222.36,0.0001519,2]
[330911779,1719937864735,-500.0,0.0001519,2]
[330911781,1719937864745,-957.03,0.0001519,2]
[330911783,1719937864754,-500.0,0.0001519,2]
[330911785,1719937864764,-1816.93,0.0001519,2]
[330911787,1719937864773,-500.0,0.0001519,2]
[330911789,1719937864782,-8979.38,0.0001519,2]
[330911791,1719937864791,-695.48,0.0001519,2]
[330911792,1719937864801,-500.0,0.0001519,2]
[330911795,1719937864810,-1000.22,0.0001519,2]
[330911797,1719937864820,-523.08,0.0001519,2]
[330911798,1719937864832,-500.0,0.0001519,2]
[330911801,1719937864843,-500.0,0.0001519,2]
[330911803,1719937864853,-500.0,0.0001519,2]
[330911804,1719937864862,-1093.19,0.0001519,2]
[330911807,1719937864873,-500.0,0.0001519,2]
[330911809,1719937864883,-500.0,0.0001519,2]
[330911810,1719937864892,-500.0,0.0001519,2]
[330911812,1719937864902,-223.68,0.0001519,2]
[330911814,1719937864912,-500.0,0.0001519,2]
[330911816,1719937864922,-500.0,0.0001519,2]
[330911818,1719937864931,-500.0,0.0001519,2]
[330911820,1719937864941,-291.73813027,0.0001519,2]
[330911822,1719937864951,-500.0,0.00015191,2]
[330911824,1719937864960,-1343.04,0.00015191,2]
[330911826,1719937864970,-176.72,0.00015191,2]
[330911828,1719937864979,-500.0,0.00015191,2]
[330911830,1719937864988,-500.0,0.00015191,2]
[330911832,1719937864997,-436.49635746,0.00015191,2]
[330911834,1719937865006,-500.0,0.00015191,2]
[330911836,1719937865018,-500.0,0.00015191,2]
[330911837,1719937865029,-557.46974757,0.00015191,2]
[330911839,1719937865039,-500.0,0.00015191,2]
[330911841,1719937865048,-500.0,0.00015191,2]
[330911843,1719937865058,-500.0,0.00015191,2]
[330911845,1719937865067,-500.0,0.00015191,2]
[330911847,1719937865077,-500.0,0.00015191,2]
[330911849,1719937865087,-500.0,0.00015191,2]
[330911863,1719937865211,-500.0,0.00015191,2]
[330911865,1719937865221,-500.0,0.00015191,2]
[330911867,1719937865231,-500.0,0.00015191,2]
[330911869,1719937865241,-607.72,0.00015191,2]
[330911871,1719937865250,-511.19,0.00015191,2]
[330911873,1719937865259,-500.0,0.00015191,2]
[330911875,1719937865270,-696.4,0.00015191,2]
[330911877,1719937865279,-500.0,0.00015191,2]
[330911879,1719937865288,-7468.84,0.00015191,2]
[330911881,1719937865297,-589.0,0.00015191,2]
[330911883,1719937865306,-500.0,0.00015191,2]
[330911885,1719937865315,-500.0,0.00015191,2]
[330911887,1719937865324,-500.0,0.00015191,2]
[330911889,1719937865333,-501.36,0.00015191,2]
[330911891,1719937865343,-240.72,0.00015191,2]
[330911893,1719937865352,-500.0,0.00015191,2]
[330911894,1719937865361,-500.0,0.00015191,2]
[330911896,1719937865371,-500.0,0.00015191,2]
[330911898,1719937865380,-3706.45,0.00015191,2]
[330911900,1719937865389,-510.06897991,0.00015191,2]
[330911902,1719937865398,-242.96,0.00015191,2]
[330911904,1719937865407,-604.46,0.00015191,2]
[330911906,1719937865417,-532.08,0.00015191,2]
[330911908,1719937865426,-500.0,0.00015191,2]
[330911910,1719937865435,-500.0,0.00015191,2]
[330911912,1719937865445,-500.0,0.00015191,2]
[330911914,1719937865454,-500.0,0.00015191,2]
[330911916,1719937865463,-500.0,0.00015191,2]
[330911918,1719937865473,-229.68,0.00015191,2]
[330911920,1719937865482,-500.0,0.00015191,2]
[330911922,1719937865491,-588.01,0.00015191,2]
[330911924,1719937865501,-500.0,0.00015191,2]
[330911926,1719937865510,-742.64,0.00015191,2]
[330911928,1719937865521,-500.0,0.00015191,2]
[330911930,1719937865530,-538.48,0.00015191,2]
[330911932,1719937865540,-500.0,0.00015191,2]
[330911934,1719937865549,-1034.14,0.00015191,2]
[330911936,1719937865559,-500.0,0.00015191,2]
[330911938,1719937865568,-500.0,0.00015191,2]
[330911939,1719937865577,-500.0,0.00015191,2]
[330911941,1719937865588,-500.0,0.00015191,2]
[330911943,1719937865597,-500.0,0.00015191,2]
[330911945,1719937865607,-348.28,0.00015191,2]
[330911947,1719937865616,-500.0,0.00015191,2]
[330911949,1719937865625,-500.0,0.00015191,2]
[330911951,1719937865635,-500.0,0.00015191,2]
[330911953,1719937865644,-500.0,0.00015191,2]
[330911955,1719937865653,-500.0,0.00015191,2]
[330911957,1719937865663,-500.0,0.00015191,2]
[330911959,1719937865673,-7772.69,0.00015191,2]
[330911961,1719937865683,-1506.43,0.00015191,2]
[330911963,1719937865692,-500.0,0.00015191,2]
[330911965,1719937865701,-500.0,0.00015191,2]
[330911967,1719937865710,-554.38,0.00015191,2]
[330911969,1719937865720,-350.2,0.00015192,2]
[330911971,1719937865729,-500.0,0.00015192,2]
[330911973,1719937865738,-1225.81,0.00015192,2]
[330911975,1719937865747,-500.0,0.00015192,2]
[330911977,1719937865758,-500.0,0.00015192,2]
[330911979,1719937865768,-978.74,0.00015192,2]
[330911981,1719937865777,-500.0,0.00015192,2]
[330911982,1719937865785,-500.0,0.00015192,2]
[330911983,1719937865798,-821.92,0.00015192,2]
[330911984,1719937865807,-699.97,0.00015192,2]
[330911985,1719937865816,-991.93,0.00015192,2]
[330911986,1719937865827,-904.53,0.00015192,2]
[330911987,1719937865837,-727.43,0.00015192,2]
[330911988,1719937865847,-514.99,0.00015192,2]
[330911989,1719937865857,-1449.99,0.00015192,2]
[330911990,1719937865867,-500.0,0.00015192,2]
[330911991,1719937865877,-567.52,0.00015192,2]
[330911992,1719937865886,-500.0,0.00015192,2]
[330911993,1719937865896,-442.04,0.00015192,2]
[330911994,1719937865905,-500.0,0.00015192,2]
[330911995,1719937865916,-500.0,0.00015192,2]
[330911996,1719937865925,-500.0,0.00015192,2]
[330911997,1719937865934,-500.0,0.00015192,2]
[330911998,1719937865943,-1267.2,0.00015192,2]
[330912000,1719937865953,-500.0,0.00015192,2]
[330912001,1719937865963,-500.0,0.00015192,2]
[330912002,1719937865972,-500.0,0.00015192,2]
[330912004,1719937865981,-500.0,0.00015193,2]
[330912006,1719937865990,-500.0,0.00015193,2]
[330912008,1719937865999,-944.93,0.00015193,2]
[330912010,1719937866009,-632.71,0.00015193,2]
[330912012,1719937866025,-634.17,0.00015219,2]
[330912014,1719937866034,-501.75611258,0.00015219,2]
[330912016,1719937866043,-500.0,0.00015219,2]
[330912018,1719937866054,-500.0,0.00015219,2]
[330912020,1719937866063,-500.0,0.00015219,2]
[330912022,1719937866073,-500.0,0.00015219,2]
[330912024,1719937866082,-5911.76,0.0001522,2]
[330912026,1719937866091,-11610.64,0.0001522,2]
[330912028,1719937866102,-1051.2,0.0001522,2]
[330912030,1719937866111,-8678.91,0.0001522,2]
[330912032,1719937866121,-504.66471826,0.0001522,2]
[330912034,1719937866130,-942.61,0.0001522,2]
[330912036,1719937866139,-151.479,0.00015251,2]
[330912038,1719937866148,-211.347,0.00015251,2]
[330912040,1719937866157,-235.629,0.00015251,2]
[330912042,1719937866166,-250.0,0.00015251,2]
[330912044,1719937866176,-213.166,0.00015251,2]
[330912046,1719937866184,-512.890949,0.00015308,2]
[330912048,1719937866194,-742.745429,0.00015308,2]
[330912050,1719937866203,-1866.888658,0.00015308,2]
[330912052,1719937866212,-2102.816397,0.00015308,2]
[330912054,1719937866221,-742.745429,0.00015308,2]
[330912056,1719937866230,-841.10676,0.00015308,2]
[330912058,1719937866239,-152.70385,0.00015368,2]
[330912060,1719937866248,-472.700548,0.00015368,2]
[330912061,1719937866257,-933.075349,0.00015368,2]
[330912063,1719937866267,-152.476222,0.00015371,2]
[330912066,1719937866276,-420.0,0.00015437,2]
[330912067,1719937866286,-1200.51,0.00015462,2]
[330912070,1719937866296,-3348.94,0.00015462,2]
[330912071,1719937866306,-500.0,0.00015462,2]
[330912073,1719937866316,-500.0,0.00015462,2]
[330912075,1719937866325,-500.0,0.00015462,2]
[330912077,1719937866334,-24491.25,0.00015462,2]
[330912079,1719937866343,-500.0,0.00015462,2]
[330912081,1719937866353,-2884.24,0.00015462,2]
[330912083,1719937866362,-4547.83,0.00015463,2]
[330912085,1719937866372,-1575.35,0.00015463,2]
[330912088,1719937866382,-500.0,0.00015463,2]
[330912090,1719937866391,-2388.79,0.00015463,2]
[330912092,1719937866400,-3129.77,0.00015463,2]
[330912094,1719937866409,-1713.81,0.00015463,2]
[330912095,1719937866418,-505.68,0.00015463,2]
[330912097,1719937866427,-244.16,0.00015463,2]
[330912099,1719937866437,-960.76,0.00015463,2]
[330912101,1719937866446,-5773.58,0.00015463,2]
[330912103,1719937866455,-1411.82,0.00015464,2]
[330912105,1719937866465,-500.0,0.00015464,2]
[330912107,1719937866474,-657.05,0.00015464,2]
[330912109,1719937866483,-1470.66,0.00015464,2]
[330912111,1719937866493,-610.91,0.00015464,2]
[330912113,1719937866502,-1406.33,0.00015464,2]
[330912115,1719937866512,-1670.31,0.00015464,2]
[330912117,1719937866522,-500.0,0.00015464,2]
[330912119,1719937866532,-500.0,0.00015464,2]
[330912121,1719937866541,-500.0,0.00015464,2]
[330912123,1719937866551,-664.76,0.00015464,2]
[330912126,1719937866561,-500.0,0.00015464,2]
[330912127,1719937866570,-500.0,0.00015464,2]
[330912129,1719937866580,-1929.34,0.00015464,2]
[330912131,1719937866589,-500.0,0.00015464,2]
[330912133,1719937866598,-802.67,0.00015464,2]
[330912135,1719937866608,-500.0,0.00015464,2]
[330912137,1719937866617,-500.0,0.00015464,2]
[330912139,1719937866627,-153.32,0.00015464,2]
[330912141,1719937866637,-500.0,0.00015464,2]
[330912143,1719937866646,-500.0,0.00015464,2]
[330912145,1719937866655,-500.0,0.00015464,2]
[330912147,1719937866665,-785.88,0.00015464,2]
[330912149,1719937866675,-500.0,0.00015464,2]
[330912151,1719937866684,-500.0,0.00015464,2]
[330912154,1719937866694,-957.03,0.00015464,2]
[330912155,1719937866704,-500.0,0.00015464,2]
[330912157,1719937866714,-1816.93,0.00015464,2]
[330912159,1719937866723,-500.0,0.00015464,2]
[330912161,1719937866733,-8979.38,0.00015464,2]
[330912163,1719937866742,-695.48,0.00015464,2]
[330912165,1719937866751,-192.52,0.00015464,2]
[330912167,1719937866760,-1000.22,0.00015464,2]
[330912169,1719937866770,-523.08,0.00015464,2]
[330912171,1719937866780,-206.47019115,0.00015464,2]
[330912173,1719937866789,-500.0,0.00015464,2]
[330912175,1719937866799,-1093.19,0.00015464,2]
[330912177,1719937866808,-482.57,0.00015464,2]
[330912179,1719937866817,-500.0,0.00015464,2]
[330912181,1719937866829,-500.0,0.00015464,2]
[330912183,1719937866839,-500.0,0.00015464,2]
[330912185,1719937866849,-500.0,0.00015464,2]
[330912187,1719937866858,-597.12,0.00015465,2]
[330912189,1719937866867,-1343.04,0.00015465,2]
[330912191,1719937866877,-537.55996537,0.00015465,2]
[330912193,1719937866886,-500.0,0.00015465,2]
[330912195,1719937866895,-340.56,0.00015465,2]
[330912197,1719937866904,-500.0,0.00015465,2]
[330912199,1719937866912,-500.0,0.00015465,2]
[330912201,1719937866922,-500.0,0.00015465,2]
[330912203,1719937866931,-500.0,0.00015465,2]
[330912205,1719937866940,-500.0,0.00015465,2]
[330912207,1719937866949,-696.4,0.00015465,2]
[330912209,1719937866958,-500.0,0.00015465,2]
[330912211,1719937866967,-7468.84,0.00015465,2]
[330912213,1719937866976,-233.92,0.00015465,2]
[330912215,1719937866985,-500.0,0.00015465,2]
[330912217,1719937866994,-500.0,0.00015465,2]
[330912219,1719937867003,-500.0,0.00015465,2]
[330912221,1719937867014,-500.0,0.00015465,2]
[330912223,1719937867028,-3706.45,0.00015465,2]
[330912225,1719937867037,-500.0,0.00015465,2]
[330912227,1719937867046,-500.0,0.00015465,2]
[330912229,1719937867056,-588.01,0.00015465,2]
[330912231,1719937867066,-500.0,0.00015465,2]
[330912233,1719937867075,-742.64,0.00015465,2]
[330912235,1719937867084,-500.0,0.00015465,2]
[330912237,1719937867095,-500.0,0.00015465,2]
[330912239,1719937867104,-1034.14,0.00015465,2]
[330912241,1719937867113,-401.0,0.00015465,2]
[330912243,1719937867123,-500.0,0.00015465,2]
[330912245,1719937867132,-500.0,0.00015465,2]
[330912247,1719937867141,-500.0,0.00015465,2]
[330912249,1719937867151,-402.18,0.00015465,2]
[330912251,1719937867160,-7772.69,0.00015465,2]
[330912253,1719937867170,-1506.43,0.00015465,2]
[330912255,1719937867178,-500.0,0.00015465,2]
[330912257,1719937867187,-554.38,0.00015465,2]
[330912259,1719937867196,-500.0,0.00015466,2]
[330912261,1719937867206,-1225.81,0.00015466,2]
[330912262,1719937867215,-554.75,0.00015466,2]
[330912264,1719937867225,-500.0,0.00015466,2]
[330912266,1719937867235,-978.74,0.00015466,2]
[330912268,1719937867244,-500.0,0.00015466,2]
[330912270,1719937867253,-500.0,0.00015466,2]
[330912272,1719937867262,-821.92,0.00015466,2]
[330912274,1719937867273,-699.97,0.00015466,2]
[330912276,1719937867282,-991.93,0.00015466,2]
[330912278,1719937867291,-904.53,0.00015466,2]
[330912280,1719937867301,-727.43,0.00015466,2]
[330912283,1719937867310,-514.99,0.00015466,2]
[330912284,1719937867319,-1449.99,0.00015466,2]
[330912286,1719937867328,-639.46,0.00015466,2]
[330912288,1719937867338,-567.52,0.00015466,2]
[330912290,1719937867347,-500.0,0.00015466,2]
[330912292,1719937867356,-500.0,0.00015466,2]
[330912294,1719937867365,-500.0,0.00015466,2]
[330912296,1719937867375,-580.76,0.00015466,2]
[330912298,1719937867384,-1267.2,0.00015466,2]
[330912300,1719937867394,-500.0,0.00015466,2]